fUST/lending_fUST_20250727
["ID","MTS","AMOUNT","RATE_DAILY","PERIOD"]
[375266978,1753607445199,-460.0,0.00019452,2]
[375266979,1753607445208,-460.0,0.00019452,2]
[375266980,1753607445221,-460.0,0.00019452,2]
[375266981,1753607445231,-829.86,0.00019452,2]
[375266982,1753607445240,-460.0,0.00019452,2]
[375266983,1753607445250,-460.0,0.00019452,2]
[375266984,1753607445259,-460.0,0.00019452,2]
[375266985,1753607445270,-460.0,0.00019452,2]
[375266986,1753607445279,-460.0,0.00019452,2]
[375266987,1753607445289,-460.0,0.00019452,2]
[375266988,1753607445299,-852.93,0.00019452,2]
[375266989,1753607445309,-460.0,0.00019452,2]
[375266990,1753607445319,-224.91215079,0.00019452,2]
[375266991,1753607445329,-460.0,0.00019452,2]
[375266992,1753607445338,-460.0,0.00019452,2]
[375266993,1753607445347,-1679.77,0.00019452,2]
[375266994,1753607445357,-460.0,0.00019452,2]
[375266995,1753607445366,-460.0,0.00019452,2]
[375266996,1753607445376,-780.7,0.00019452,2]
[375266997,1753607445385,-460.0,0.00019452,2]
[375266998,1753607445489,-460.0,0.00019452,2]
[375266999,1753607445499,-460.0,0.00019452,2]
[375267000,1753607445508,-460.0,0.00019452,2]
[375267001,1753607445518,-460.0,0.00019452,2]
[375267002,1753607445527,-460.0,0.00019452,2]
[375267003,1753607445537,-460.0,0.00019452,2]
[375267004,1753607445546,-1068.59,0.00019452,2]
[375267005,1753607445557,-460.0,0.00019452,2]
[375267006,1753607445567,-3015.18,0.00019452,2]
[375267007,1753607445576,-465.07307364,0.00019452,2]
[375267008,1753607445586,-681.36,0.00019452,2]
[375267009,1753607445597,-460.0,0.00019452,2]
[375267010,1753607445606,-2784.31422223,0.00019452,2]
[375267036,1753607446156,-363.16580437,0.00019452,2]
[375267038,1753607446167,-1337.380915,0.00019452,2]
[375267040,1753607446179,-500.0190584,0.00019452,2]
[375267042,1753607446189,-460.0,0.00019452,2]
[375267044,1753607446198,-460.0,0.00019452,2]
[375267046,1753607446208,-601.27,0.00019452,2]
[375267049,1753607446221,-460.0,0.00019452,2]
[375267051,1753607446231,-460.0,0.00019452,2]
[375267053,1753607446240,-983.09,0.00019452,2]
[375267055,1753607446249,-460.0,0.00019452,2]
[375267057,1753607446258,-460.0,0.00019452,2]
[375267059,1753607446268,-460.0,0.00019452,2]
[375267060,1753607446278,-460.0,0.00019452,2]
[375267062,1753607446287,-195.98645433,0.00019452,2]
[375267064,1753607446297,-460.0,0.00019452,2]
[375267066,1753607446308,-573.72,0.00019452,2]
[375267068,1753607446318,-460.0,0.00019452,2]
[375267069,1753607446327,-506.64579049,0.00019452,2]
[375267070,1753607446336,-2355.58,0.00019452,2]
[375267071,1753607446345,-460.0,0.00019452,2]
[375267072,1753607446354,-2109.51,0.00019452,2]
[375267073,1753607446362,-460.0,0.00019452,2]
[375267074,1753607446369,-460.0,0.00019452,2]
[375267075,1753607446378,-664.41,0.00019452,2]
[375267076,1753607446386,-460.0,0.00019452,2]
[375267077,1753607446397,-460.0,0.00019452,2]
[375267078,1753607446406,-166.83171779,0.00019452,2]
[375267079,1753607446414,-460.0,0.00019452,2]
[375267080,1753607446423,-460.0,0.00019452,2]
[375267081,1753607446431,-460.0,0.00019452,2]
[375267082,1753607446440,-460.0,0.00019452,2]
[375267083,1753607446448,-460.0,0.00019452,2]
[375267084,1753607446457,-460.0,0.00019452,2]
[375267085,1753607446468,-460.0,0.00019452,2]
[375267086,1753607446477,-460.0,0.00019452,2]
[375267087,1753607446486,-460.0,0.00019452,2]
[375267088,1753607446495,-460.0,0.00019452,2]
[375267089,1753607446503,-460.0,0.00019452,2]
[375267090,1753607446512,-712.42,0.00019452,2]
[375267091,1753607446520,-460.0,0.00019452,2]
[375267092,1753607446528,-1726.36,0.00019452,2]
[375267093,1753607446537,-460.0,0.00019452,2]
[375267094,1753607446545,-460.0,0.00019452,2]
[375267095,1753607446554,-464.68809538,0.00019452,2]
[375267096,1753607446562,-460.0,0.00019452,2]
[375267097,1753607446571,-1083.81,0.00019452,2]
[375267098,1753607446580,-1662.78,0.00019452,2]
[375267099,1753607446589,-763.04,0.00019452,2]
[375267100,1753607446597,-460.0,0.00019452,2]
[375267101,1753607446606,-460.0,0.00019452,2]
[375267102,1753607446614,-460.0,0.00019452,2]
[375267103,1753607446623,-460.0,0.00019452,2]
[375267104,1753607446632,-460.0,0.00019452,2]
[375267105,1753607446641,-470.88758111,0.00019452,2]
[375267106,1753607446649,-590.12,0.00019452,2]
[375267107,1753607446659,-460.0,0.00019452,2]
[375267108,1753607446668,-460.0,0.00019452,2]
[375267109,1753607446676,-460.0,0.00019452,2]
[375267110,1753607446685,-460.0,0.00019452,2]
[375267111,1753607446694,-460.0,0.00019452,2]
[375267112,1753607446703,-460.0,0.00019452,2]
[375267113,1753607446712,-460.0,0.00019452,2]
[375267114,1753607446721,-530.45,0.00019452,2]
[375267116,1753607446730,-199.63669138,0.00019452,2]
[375267117,1753607446739,-1703.25,0.00019452,2]
[375267119,1753607446749,-1703.25,0.00019452,2]
[375267121,1753607446758,-460.0,0.00019452,2]
[375267123,1753607446767,-1941.23,0.00019452,2]
[375267125,1753607446776,-460.0,0.00019452,2]
[375267127,1753607446785,-460.0,0.00019452,2]
[375267128,1753607446794,-460.0,0.00019452,2]
[375267129,1753607446804,-460.0,0.00019452,2]
[375267130,1753607446814,-681.54,0.00019452,2]
[375267131,1753607446823,-460.0,0.00019452,2]
[375267132,1753607446833,-460.0,0.00019452,2]
[375267133,1753607446842,-460.0,0.00019452,2]
[375267134,1753607446851,-460.0,0.00019452,2]
[375267135,1753607446861,-460.0,0.00019452,2]
[375267136,1753607446871,-460.0,0.00019452,2]
[375267137,1753607446880,-953.57,0.00019452,2]
[375267138,1753607446890,-755.61,0.00019452,2]
[375267139,1753607446899,-460.0,0.00019452,2]
[375267140,1753607446908,-460.0,0.00019452,2]
[375267141,1753607446918,-460.0,0.00019452,2]
[375267142,1753607446927,-460.0,0.00019452,2]
[375267143,1753607446936,-460.0,0.00019452,2]
[375267144,1753607446946,-460.0,0.00019452,2]
[375267145,1753607446955,-460.0,0.00019452,2]
[375267146,1753607446965,-460.0,0.00019452,2]
[375267147,1753607446974,-460.0,0.00019452,2]
[375267148,1753607446984,-460.0,0.00019452,2]
[375267149,1753607446994,-460.0,0.00019452,2]
[375267150,1753607447003,-460.0,0.00019452,2]
[375267151,1753607447012,-460.0,0.00019452,2]
[375267152,1753607447022,-460.0,0.00019452,2]
[375267153,1753607447031,-460.0,0.00019452,2]
[375267154,1753607447040,-150.0,0.00019469,2]
[375267155,1753607447049,-501.03038797,0.00019473,2]
[375267156,1753607447059,-386.03999746,0.00019473,2]
[375267157,1753607447068,-600.0,0.0001952,2]
[375267158,1753607447077,-1031.4812003,0.000196,2]
[375267159,1753607447087,-577.9763186,0.000196,2]
[375267160,1753607447096,-577.9763186,0.000196,2]
[375267161,1753607447106,-577.9763186,0.000196,2]
[375267162,1753607447115,-577.9763186,0.000196,2]
[375267163,1753607447124,-1154.1140731,0.000196,2]
[375267164,1753607447134,-1506.66414229,0.00019628,2]
[375267165,1753607447143,-3609.07108579,0.00019645,2]
[375267166,1753607447152,-214.84090509,0.00019676,2]
[375267167,1753607447161,-160.0,0.00019676,2]
[375267168,1753607447170,-12632.25855046,0.00019676,2]
[375267169,1753607447180,-160.0,0.00019677,2]
[375267170,1753607447190,-160.0,0.00019677,2]
[375267171,1753607447199,-526.50274803,0.00019678,2]
[375267172,1753607447209,-160.0,0.00019678,2]
[375267173,1753607447222,-216.01841554,0.00019678,2]
[375267174,1753607447232,-160.0,0.00019678,2]
[375267175,1753607447242,-840.75038169,0.00019678,2]
[375267176,1753607447252,-231.30466539,0.00019678,2]
[375267177,1753607447262,-688.62001584,0.00019694,2]
[375267178,1753607447272,-577.9763186,0.000197,2]
[375267179,1753607447281,-577.9763186,0.000197,2]
[375267180,1753607447291,-513.0683767,0.00019721,2]
[375267181,1753607447301,-460.0,0.00019726,2]
[375267182,1753607447311,-460.0,0.00019726,2]
[375267183,1753607447321,-460.0,0.00019726,2]
[375267184,1753607447331,-460.0,0.00019726,2]
[375267185,1753607447340,-460.0,0.00019726,2]
[375267186,1753607447350,-460.0,0.00019726,2]
[375267187,1753607447359,-460.0,0.00019726,2]
[375267188,1753607447369,-460.0,0.00019726,2]
[375267189,1753607447379,-460.0,0.00019726,2]
[375267190,1753607447388,-5035.69,0.00019726,2]
[375267191,1753607447398,-460.0,0.00019726,2]
[375267192,1753607447408,-1516.56,0.00019726,2]
[375267193,1753607447418,-460.0,0.00019726,2]
[375267194,1753607447428,-460.0,0.00019726,2]
[375267195,1753607447437,-460.0,0.00019726,2]
[375267196,1753607447447,-460.0,0.00019726,2]
[375267197,1753607447456,-460.0,0.00019726,2]
[375267198,1753607447466,-1823.33,0.00019726,2]
[375267199,1753607447475,-460.0,0.00019726,2]
[375267201,1753607447485,-460.0,0.00019726,2]
[375267203,1753607447495,-460.0,0.00019726,2]
[375267205,1753607447504,-460.0,0.00019726,2]
[375267207,1753607447513,-460.0,0.00019726,2]
[375267208,1753607447523,-460.0,0.00019726,2]
[375267211,1753607447532,-460.0,0.00019726,2]
[375267212,1753607447543,-460.0,0.00019726,2]
[375267214,1753607447552,-513.61,0.00019726,2]
[375267216,1753607447562,-460.0,0.00019726,2]
[375267218,1753607447571,-568.91960391,0.00019726,2]
[375267220,1753607447580,-460.0,0.00019726,2]
[375267222,1753607447590,-460.0,0.00019726,2]
[375267224,1753607447599,-460.0,0.00019726,2]
[375267226,1753607447609,-460.0,0.00019726,2]
[375267228,1753607447619,-460.0,0.00019726,2]
[375267229,1753607447629,-460.0,0.00019726,2]
[375267230,1753607447639,-2155.71,0.00019726,2]
[375267231,1753607447740,-347.12730531,0.00019726,2]
[375267232,1753607447750,-460.0,0.00019726,2]
[375267233,1753607447759,-479.45,0.00019726,2]
[375267234,1753607447768,-460.0,0.00019726,2]
[375267235,1753607447778,-460.0,0.00019726,2]
[375267236,1753607447788,-460.0,0.00019726,2]
[375267237,1753607447797,-460.0,0.00019726,2]
[375267238,1753607447813,-460.0,0.00019726,2]
[375267239,1753607447823,-460.0,0.00019726,2]
[375267240,1753607447832,-460.0,0.00019726,2]
[375267241,1753607447842,-460.0,0.00019726,2]
[375267242,1753607447852,-460.0,0.00019726,2]
[375267243,1753607447862,-460.0,0.00019726,2]
[375267244,1753607447872,-460.0,0.00019726,2]
[375267245,1753607447882,-460.0,0.00019726,2]
[375267246,1753607447892,-460.0,0.00019726,2]
[375267247,1753607447902,-626.32,0.00019726,2]
[375267248,1753607447912,-885.01,0.00019726,2]
[375267249,1753607447922,-460.0,0.00019726,2]
[375267250,1753607447932,-460.0,0.00019726,2]
[375267251,1753607447941,-460.0,0.00019726,2]
[375267252,1753607447951,-460.0,0.00019726,2]
[375267253,1753607447961,-460.0,0.00019726,2]
[375267254,1753607447971,-788.94,0.00019726,2]
[375267255,1753607447981,-460.0,0.00019726,2]
[375267256,1753607447991,-460.0,0.00019726,2]
[375267257,1753607448001,-460.0,0.00019726,2]
[375267258,1753607448011,-567.16,0.00019726,2]
[375267259,1753607448021,-460.0,0.00019726,2]
[375267260,1753607448031,-460.0,0.00019726,2]
[375267261,1753607448041,-464.91665648,0.00019726,2]
[375267262,1753607448051,-460.0,0.00019726,2]
[375267263,1753607448061,-460.0,0.00019726,2]
[375267264,1753607448070,-861.71,0.00019726,2]
[375267265,1753607448080,-460.0,0.00019726,2]
[375267266,1753607448089,-460.0,0.00019726,2]
[375267267,1753607448099,-1807.33,0.00019726,2]
[375267268,1753607448114,-460.0,0.00019726,2]
[375267269,1753607448137,-460.0,0.00019726,2]
[375267270,1753607448158,-460.0,0.00019726,2]
[375267271,1753607448183,-460.0,0.00019726,2]
[375267272,1753607448205,-460.0,0.00019726,2]
[375267273,1753607448228,-460.0,0.00019726,2]
[375267274,1753607448250,-2365.63,0.00019726,2]
[375267275,1753607448272,-460.0,0.00019726,2]
[375267276,1753607448294,-460.0,0.00019726,2]
[375267277,1753607448317,-460.0,0.00019726,2]
[375267278,1753607448339,-460.0,0.00019726,2]
[375267279,1753607448361,-460.0,0.00019726,2]
[375267280,1753607448383,-460.0,0.00019726,2]
[375267281,1753607448405,-569.25810141,0.00019726,2]
[375267282,1753607448428,-460.0,0.00019726,2]
[375267283,1753607448451,-460.0,0.00019726,2]
[375267284,1753607448473,-460.0,0.00019726,2]
[375267285,1753607448483,-460.0,0.00019726,2]
[375267286,1753607448492,-460.0,0.00019726,2]
[375267287,1753607448502,-460.0,0.00019726,2]
[375267288,1753607448511,-460.0,0.00019726,2]
[375267289,1753607448520,-460.0,0.00019726,2]
[375267290,1753607448530,-460.0,0.00019726,2]
[375267291,1753607448540,-460.0,0.00019726,2]
[375267292,1753607448550,-460.0,0.00019726,2]
[375267293,1753607448560,-823.37,0.00019726,2]
[375267294,1753607448571,-460.0,0.00019726,2]
[375267295,1753607448582,-460.0,0.00019726,2]
[375267296,1753607448592,-465.3651627,0.00019726,2]
[375267297,1753607448602,-829.86,0.00019726,2]
[375267298,1753607448612,-460.0,0.00019726,2]
[375267299,1753607448621,-460.0,0.00019726,2]
[375267300,1753607448630,-460.0,0.00019726,2]
[375267301,1753607448639,-471.92079923,0.00019726,2]
[375267302,1753607448649,-460.0,0.00019726,2]
[375267303,1753607448658,-852.93,0.00019726,2]
[375267304,1753607448669,-460.0,0.00019726,2]
[375267305,1753607448679,-460.0,0.00019726,2]
[375267306,1753607448690,-1679.77,0.00019726,2]
[375267307,1753607448700,-460.0,0.00019726,2]
[375267308,1753607448709,-460.0,0.00019726,2]
[375267309,1753607448719,-320.99495181,0.00019726,2]
[375267310,1753607448729,-780.7,0.00019726,2]
[375267311,1753607448739,-460.0,0.00019726,2]
[375267312,1753607448749,-460.0,0.00019726,2]
[375267313,1753607448758,-460.0,0.00019726,2]
[375267314,1753607448767,-460.0,0.00019726,2]
[375267315,1753607448777,-460.0,0.00019726,2]
[375267316,1753607448787,-1068.59,0.00019726,2]
[375267317,1753607448796,-460.0,0.00019726,2]
[375267318,1753607448806,-3015.18,0.00019726,2]
[375267319,1753607448816,-681.36,0.00019726,2]
[375267320,1753607448828,-460.0,0.00019726,2]
[375267321,1753607448839,-4984.88,0.00019726,2]
[375267322,1753607448849,-460.0,0.00019726,2]
[375267323,1753607448859,-460.0,0.00019726,2]
[375267324,1753607448869,-601.27,0.00019726,2]
[375267325,1753607448887,-460.0,0.00019726,2]
[375267326,1753607448902,-460.0,0.00019726,2]
[375267327,1753607448918,-983.09,0.00019726,2]
[375267328,1753607448933,-460.0,0.00019726,2]
[375267329,1753607448949,-460.0,0.00019726,2]
[375267330,1753607448964,-460.0,0.00019726,2]
[375267331,1753607448979,-460.0,0.00019726,2]
[375267332,1753607448993,-460.0,0.00019726,2]
[375267333,1753607449008,-573.72,0.00019726,2]
[375267334,1753607449023,-460.0,0.00019726,2]
[375267335,1753607449037,-2355.58,0.00019726,2]
[375267336,1753607449051,-460.0,0.00019726,2]
[375267337,1753607449064,-2109.51,0.00019726,2]
[375267338,1753607449079,-460.0,0.00019726,2]
[375267339,1753607449093,-460.0,0.00019726,2]
[375267340,1753607449106,-664.41,0.00019726,2]
[375267341,1753607449116,-317.07667341,0.00019726,2]
[375267342,1753607449129,-460.0,0.00019726,2]
[375267343,1753607449143,-460.0,0.00019726,2]
[375267344,1753607449157,-460.0,0.00019726,2]
[375267345,1753607449172,-460.0,0.00019726,2]
[375267346,1753607449187,-460.0,0.00019726,2]
[375267347,1753607449201,-460.0,0.00019726,2]
[375267348,1753607449218,-460.0,0.00019726,2]
[375267349,1753607449230,-460.0,0.00019726,2]
[375267350,1753607449242,-460.0,0.00019726,2]
[375267351,1753607449253,-460.0,0.00019726,2]
[375267352,1753607449267,-712.42,0.00019726,2]
[375267353,1753607449283,-460.0,0.00019726,2]
[375267354,1753607449296,-1726.36,0.00019726,2]
[375267355,1753607449308,-460.0,0.00019726,2]
[375267356,1753607449320,-460.0,0.00019726,2]
[375267357,1753607449334,-1083.81,0.00019726,2]
[375267358,1753607449345,-1662.78,0.00019726,2]
[375267359,1753607449357,-763.04,0.00019726,2]
[375267360,1753607449369,-460.0,0.00019726,2]
[375267361,1753607449380,-460.0,0.00019726,2]
[375267362,1753607449392,-460.0,0.00019726,2]
[375267363,1753607449405,-460.0,0.00019726,2]
[375267364,1753607449416,-460.0,0.00019726,2]
[375267365,1753607449429,-590.12,0.00019726,2]
[375267366,1753607449441,-460.0,0.00019726,2]
[375267367,1753607449454,-460.0,0.00019726,2]
[375267368,1753607449467,-460.0,0.00019726,2]
[375267369,1753607449479,-460.0,0.00019726,2]
[375267370,1753607449491,-460.0,0.00019726,2]
[375267371,1753607449503,-460.0,0.00019726,2]
[375267372,1753607449515,-460.0,0.00019726,2]
[375267373,1753607449527,-530.45,0.00019726,2]
[375267374,1753607449540,-1703.25,0.00019726,2]
[375267375,1753607449552,-1703.25,0.00019726,2]
[375267376,1753607449564,-460.0,0.00019726,2]
[375267377,1753607449576,-1941.23,0.00019726,2]
[375267378,1753607449588,-460.0,0.00019726,2]
[375267379,1753607449600,-460.0,0.00019726,2]
[375267380,1753607449612,-460.0,0.00019726,2]
[375267381,1753607449624,-681.54,0.00019726,2]
[375267382,1753607449636,-460.0,0.00019726,2]
[375267383,1753607449648,-460.0,0.00019726,2]
[375267384,1753607449661,-460.0,0.00019726,2]
[375267385,1753607449674,-460.0,0.00019726,2]
[375267386,1753607449686,-460.0,0.00019726,2]
[375267387,1753607449698,-460.0,0.00019726,2]
[375267388,1753607449710,-953.57,0.00019726,2]
[375267389,1753607449722,-755.61,0.00019726,2]
[375267390,1753607449734,-460.0,0.00019726,2]
[375267391,1753607449747,-460.0,0.00019726,2]
[375267392,1753607449759,-460.0,0.00019726,2]
[375267393,1753607449771,-460.0,0.00019726,2]
[375267394,1753607449794,-460.0,0.00019726,2]
[375267395,1753607449806,-460.0,0.00019726,2]
[375267396,1753607449818,-521.61747541,0.00019726,2]
[375267397,1753607449830,-460.0,0.00019726,2]
[375267398,1753607449842,-460.0,0.00019726,2]
[375267399,1753607449854,-460.0,0.00019726,2]
[375267400,1753607449867,-460.0,0.00019726,2]
[375267401,1753607449876,-500.0,0.00019773,2]
[375267402,1753607449885,-201.80519467,0.00019773,2]
[375267403,1753607449895,-500.0,0.00019773,2]
[375267404,1753607449904,-1212.28081489,0.00019773,2]
[375267405,1753607449914,-151.0,0.000199,2]
[375267406,1753607449925,-1191.03054543,0.0002,2]
[375267407,1753607449935,-151.0,0.0002,2]
[375267408,1753607449947,-460.0,0.0002,2]
[375267409,1753607449957,-460.0,0.0002,2]
[375267410,1753607449967,-460.0,0.0002,2]
[375267411,1753607449977,-460.0,0.0002,2]
[375267412,1753607449987,-477.87252492,0.0002,2]
[375267413,1753607449996,-460.0,0.0002,2]
[375267414,1753607450006,-460.0,0.0002,2]
[375267415,1753607450015,-460.0,0.0002,2]
[375267416,1753607450179,-460.0,0.0002,2]
[375267417,1753607450199,-460.0,0.0002,2]
[375267418,1753607450212,-460.0,0.0002,2]
[375267419,1753607450225,-460.0,0.0002,2]
[375267420,1753607450234,-5035.69,0.0002,2]
[375267421,1753607450244,-460.0,0.0002,2]
[375267422,1753607450253,-1516.56,0.0002,2]
[375267423,1753607450263,-460.0,0.0002,2]
[375267424,1753607450272,-460.0,0.0002,2]
[375267425,1753607450281,-460.0,0.0002,2]
[375267426,1753607450291,-462.52765185,0.0002,2]
[375267427,1753607450302,-1823.33,0.0002,2]
[375267428,1753607450312,-296.91070501,0.0002,2]
[375267429,1753607450321,-356.76579242,0.0002,2]
[375267430,1753607450331,-460.0,0.0002,2]
[375267431,1753607450340,-279.86903766,0.0002,2]
[375267432,1753607450349,-460.0,0.0002,2]
[375267433,1753607450358,-460.0,0.0002,2]
[375267434,1753607450367,-460.0,0.0002,2]
[375267435,1753607450378,-208.623629,0.0002,2]
[375267436,1753607450387,-513.61,0.0002,2]
[375267437,1753607450397,-460.0,0.0002,2]
[375267438,1753607450406,-460.0,0.0002,2]
[375267439,1753607450415,-460.0,0.0002,2]
[375267440,1753607450426,-460.0,0.0002,2]
[375267441,1753607450436,-460.0,0.0002,2]
[375267442,1753607450445,-460.0,0.0002,2]
[375267443,1753607450454,-460.0,0.0002,2]
[375267444,1753607450464,-2155.71,0.0002,2]
[375267445,1753607450474,-460.0,0.0002,2]
[375267446,1753607450483,-479.45,0.0002,2]
[375267447,1753607450493,-460.0,0.0002,2]
[375267448,1753607450502,-529.09554475,0.0002,2]
[375267449,1753607450511,-460.0,0.0002,2]
[375267450,1753607450521,-460.0,0.0002,2]
[375267451,1753607450530,-460.0,0.0002,2]
[375267452,1753607450540,-460.0,0.0002,2]
[375267453,1753607450549,-460.0,0.0002,2]
[375267454,1753607450559,-460.0,0.0002,2]
[375267455,1753607450569,-460.0,0.0002,2]
[375267456,1753607450579,-202.76372487,0.0002,2]
[375267457,1753607450588,-460.0,0.0002,2]
[375267458,1753607450598,-460.0,0.0002,2]
[375267459,1753607450607,-626.32,0.0002,2]
[375267460,1753607450617,-885.01,0.0002,2]
[375267461,1753607450627,-460.0,0.0002,2]
[375267462,1753607450636,-460.0,0.0002,2]
[375267463,1753607450645,-460.0,0.0002,2]
[375267464,1753607450655,-476.94476119,0.0002,2]
[375267465,1753607450665,-788.94,0.0002,2]
[375267466,1753607450675,-460.0,0.0002,2]
[375267467,1753607450685,-460.0,0.0002,2]
[375267468,1753607450694,-515.39806225,0.0002,2]
[375267469,1753607450704,-567.16,0.0002,2]
[375267470,1753607450713,-467.02692035,0.0002,2]
[375267471,1753607450723,-460.0,0.0002,2]
[375267472,1753607450734,-460.0,0.0002,2]
[375267473,1753607450744,-460.0,0.0002,2]
[375267474,1753607450753,-861.71,0.0002,2]
[375267475,1753607450763,-460.0,0.0002,2]
[375267476,1753607450773,-460.0,0.0002,2]
[375267477,1753607450783,-1807.33,0.0002,2]
[375267478,1753607450792,-460.0,0.0002,2]
[375267479,1753607450802,-460.0,0.0002,2]
[375267480,1753607450811,-460.0,0.0002,2]
[375267481,1753607450820,-460.0,0.0002,2]
[375267482,1753607450830,-460.0,0.0002,2]
[375267483,1753607450840,-2365.63,0.0002,2]
[375267484,1753607450850,-460.0,0.0002,2]
[375267485,1753607450859,-460.0,0.0002,2]
[375267486,1753607450869,-470.45389539,0.0002,2]
[375267487,1753607450879,-460.0,0.0002,2]
[375267488,1753607450888,-460.0,0.0002,2]
[375267489,1753607450898,-460.0,0.0002,2]
[375267490,1753607450907,-460.0,0.0002,2]
[375267491,1753607450916,-460.0,0.0002,2]
[375267492,1753607450927,-175.91603106,0.0002,2]
[375267493,1753607450937,-460.0,0.0002,2]
[375267494,1753607450946,-460.0,0.0002,2]
[375267495,1753607450956,-460.0,0.0002,2]
[375267496,1753607450965,-460.0,0.0002,2]
[375267497,1753607450975,-460.0,0.0002,2]
[375267498,1753607450985,-191.36115455,0.0002,2]
[375267499,1753607450994,-823.37,0.0002,2]
[375267500,1753607451004,-460.0,0.0002,2]
[375267501,1753607451014,-460.0,0.0002,2]
[375267502,1753607451023,-829.86,0.0002,2]
[375267503,1753607451033,-460.0,0.0002,2]
[375267504,1753607451042,-460.0,0.0002,2]
[375267505,1753607451052,-460.0,0.0002,2]
[375267506,1753607451061,-460.0,0.0002,2]
[375267507,1753607451071,-852.93,0.0002,2]
[375267508,1753607451081,-460.0,0.0002,2]
[375267509,1753607451090,-460.0,0.0002,2]
[375267510,1753607451101,-1679.77,0.0002,2]
[375267511,1753607451110,-460.0,0.0002,2]
[375267512,1753607451119,-460.0,0.0002,2]
[375267513,1753607451129,-460.0,0.0002,2]
[375267514,1753607451139,-780.7,0.0002,2]
[375267515,1753607451149,-460.0,0.0002,2]
[375267516,1753607451158,-460.0,0.0002,2]
[375267517,1753607451168,-460.0,0.0002,2]
[375267518,1753607451178,-460.0,0.0002,2]
[375267519,1753607451187,-1068.59,0.0002,2]
[375267520,1753607451197,-460.0,0.0002,2]
[375267521,1753607451207,-3015.18,0.0002,2]
[375267522,1753607451219,-460.0,0.0002,2]
[375267523,1753607451229,-681.36,0.0002,2]
[375267524,1753607451239,-4984.88,0.0002,2]
[375267525,1753607451249,-460.0,0.0002,2]
[375267526,1753607451259,-460.0,0.0002,2]
[375267527,1753607451268,-601.27,0.0002,2]
[375267528,1753607451277,-460.0,0.0002,2]
[375267529,1753607451287,-460.0,0.0002,2]
[375267530,1753607451297,-983.09,0.0002,2]
[375267531,1753607451308,-460.0,0.0002,2]
[375267532,1753607451317,-460.0,0.0002,2]
[375267533,1753607451327,-460.0,0.0002,2]
[375267534,1753607451337,-460.0,0.0002,2]
[375267535,1753607451347,-460.0,0.0002,2]
[375267536,1753607451356,-573.72,0.0002,2]
[375267537,1753607451366,-460.0,0.0002,2]
[375267538,1753607451376,-2355.58,0.0002,2]